bitfinex/quotes_BTCUSD_20250420
["timestamp","ask_amount","ask_price","bid_price","bid_amount"]
[1745146323322,0.74935252,83969.0,83968.0,1.22356]
[1745146323533,0.74935252,83969.0,83968.0,1.37896569]
[1745146326199,1.08935252,83969.0,83968.0,1.37896569]
[1745146326568,1.10038078,83969.0,83968.0,1.37896569]
[1745146326769,1.12234975,83969.0,83968.0,1.37896569]
[1745146327000,0.01190972,83965.0,83953.0,1.224]
[1745146327169,0.13498876,83954.0,83953.0,1.224]
[1745146327515,0.18298876,83954.0,83953.0,1.37452]
[1745146329456,0.45274632,83954.0,83953.0,1.37452]
[1745146330276,0.40474632,83954.0,83953.0,1.37452]
[1745146330607,0.40474632,83954.0,83953.0,1.224]
[1745146330824,0.40474632,83954.0,83953.0,1.37452]
[1745146331142,0.40474632,83954.0,83953.0,1.224]
[1745146331352,0.40474632,83954.0,83953.0,1.37452]
[1745146331523,0.40474632,83954.0,83953.0,1.224]
[1745146331705,0.40474632,83954.0,83953.0,1.37452]
[1745146334626,0.40474632,83954.0,83953.0,1.37908784]
[1745146335050,0.40474632,83954.0,83953.0,1.38008784]
[1745146337246,0.40474632,83954.0,83953.0,1.37908784]
[1745146337644,0.40474632,83954.0,83953.0,1.37904784]
[1745146337795,0.13498876,83954.0,83953.0,1.37904784]
[1745146342781,0.13498876,83954.0,83953.0,1.22856784]
[1745146342955,0.13498876,83954.0,83953.0,1.37904784]
[1745146348439,0.18198876,83954.0,83953.0,1.37904784]
[1745146349177,0.22978876,83954.0,83953.0,1.37904784]
[1745146350352,0.11944791,83954.0,83953.0,1.37904784]
[1745146350546,0.11944791,83954.0,83953.0,1.38004784]
[1745146350755,0.13398876,83954.0,83953.0,1.38004784]
[1745146350888,0.13398876,83954.0,83953.0,1.37904784]
[1745146351329,0.00932307,83969.0,83953.0,1.37904784]
[1745146351330,0.00045259,83969.0,83953.0,1.38004784]
[1745146351536,0.001,83967.0,83953.0,1.38004784]
[1745146351731,0.11944791,83966.0,83953.0,1.38004784]
[1745146352983,0.01454085,83965.0,83954.0,1.22408]
[1745146353183,0.13398876,83965.0,83954.0,1.2285629]
[1745146353466,0.01454085,83955.0,83954.0,1.2285629]
[1745146353667,0.13498876,83955.0,83954.0,1.3790429]
[1745146354747,0.18408876,83955.0,83954.0,1.3790429]
[1745146358690,0.23378876,83955.0,83954.0,1.3790429]
[1745146359424,0.24206617,83955.0,83954.0,1.3790429]
[1745146367367,0.24306617,83955.0,83954.0,0.0044829]
[1745146367789,0.24306617,83955.0,83952.0,0.15044]
[1745146367937,0.12361826,83955.0,83954.0,0.00416142]
[1745146368122,0.12361826,83955.0,83952.0,0.15044]
[1745146368342,0.12361826,83955.0,83954.0,0.00416142]
[1745146368799,0.14569087,83955.0,83952.0,0.15044]
[1745146369232,0.15672599,83955.0,83953.0,0.00416142]
[1745146369401,0.02281826,83954.0,83953.0,0.00416142]
[1745146369541,0.04489087,83954.0,83953.0,0.00416142]
[1745146369930,0.05692599,83954.0,83953.0,0.00416142]
[1745146370356,0.1763739,83954.0,83953.0,0.00416142]
[1745146370689,0.01454085,83953.0,83952.0,0.15044]
[1745146370873,0.13398876,83953.0,83952.0,0.15044]
[1745146371028,0.13498876,83953.0,83952.0,0.15044]
[1745146371226,0.4454899,83953.0,83952.0,0.15044]
[1745146371659,0.02645284,83949.0,83935.0,0.0126312]
[1745146371848,0.01454085,83942.0,83936.0,0.15460142]
[1745146372050,0.01454085,83940.0,83936.0,0.15460142]
[1745146372357,0.01454085,83938.0,83936.0,0.15460142]
[1745146372566,0.13398876,83937.0,83936.0,0.15460142]
[1745146372963,0.13398876,83937.0,83936.0,0.15668213]
[1745146373185,0.13444107,83937.0,83936.0,0.15668213]
[1745146373596,0.00045231,83937.0,83936.0,0.15668213]
[1745146374476,0.00045231,83937.0,83936.0,0.15768213]
[1745146375053,0.00045231,83937.0,83936.0,0.15668213]
[1745146377049,0.00045231,83937.0,83936.0,0.15768213]
[1745146379025,0.00045231,83937.0,83936.0,0.20676458]
[1745146379216,0.00045231,83937.0,83936.0,0.20438213]
[1745146383568,0.00045231,83937.0,83936.0,0.19992032]
[1745146384383,0.00045231,83937.0,83936.0,0.15597819]
[1745146387323,0.02254374,83937.0,83936.0,0.15597819]
[1745146387528,0.02354374,83937.0,83936.0,0.15597819]
[1745146388660,0.1585325,83937.0,83936.0,0.15597819]
[1745146389843,0.2036325,83937.0,83936.0,0.15597819]
[1745146390050,0.2036325,83937.0,83936.0,0.16329819]
[1745146390255,0.27126263,83937.0,83936.0,0.16329819]
[1745146393708,0.27026263,83937.0,83936.0,0.16329819]
[1745146394193,0.26926263,83937.0,83936.0,0.16329819]
[1745146394486,0.54002019,83937.0,83936.0,0.16329819]
[1745146395124,0.50338791,83937.0,83936.0,0.16329819]
[1745146395908,0.51792876,83937.0,83936.0,0.16329819]
[1745146396507,0.47282876,83937.0,83936.0,0.16329819]
[1745146398300,0.49489861,83937.0,83936.0,0.16329819]
[1745146398777,0.47282876,83937.0,83936.0,0.16329819]
[1745146399775,0.46178286,83937.0,83936.0,0.16329819]
[1745146401832,0.45349863,83937.0,83936.0,0.16329819]
[1745146402850,0.46453264,83937.0,83936.0,0.16329819]
[1745146404454,0.45349863,83937.0,83936.0,0.16329819]
[1745146405203,0.40619863,83937.0,83936.0,0.16329819]
[1745146405320,0.40419863,83937.0,83936.0,0.16329819]
[1745146405521,0.40519863,83937.0,83936.0,0.16329819]
[1745146406197,0.40419863,83937.0,83936.0,0.16329819]
[1745146406396,0.28475072,83937.0,83936.0,0.16329819]
[1745146407804,0.28575072,83937.0,83936.0,0.16329819]
[1745146408549,0.45299863,83937.0,83936.0,0.16329819]
[1745146411481,0.46127602,83937.0,83936.0,0.16329819]
[1745146412686,0.47231358,83937.0,83936.0,0.16329819]
[1745146413790,0.49439327,83937.0,83936.0,0.16329819]
[1745146415074,0.47231358,83937.0,83936.0,0.16329819]
[1745146416182,0.49439633,83937.0,83936.0,0.16329819]
[1745146417988,0.54383596,83937.0,83936.0,0.16329819]
[1745146418319,0.54429633,83937.0,83936.0,0.16329819]
[1745146420344,0.54529633,83937.0,83936.0,0.16329819]
[1745146421408,0.63937247,83937.0,83936.0,0.00553819]
[1745146421613,0.63937247,83937.0,83936.0,0.18165819]
[1745146421829,0.63937247,83937.0,83891.0,0.004]
[1745146421830,0.001,83912.0,83891.0,0.004]
[1745146422058,0.01554085,83903.0,83898.0,0.17612]
[1745146422271,0.13498876,83903.0,83898.0,0.17612]
[1745146422475,0.16413764,83903.0,83891.0,0.004]
[1745146422680,0.21003764,83903.0,83902.0,0.1765407]
[1745146422886,0.01454085,83902.0,83900.0,0.57996615]
[1745146423097,0.13398876,83901.0,83900.0,0.57996615]
[1745146423328,0.13498876,83901.0,83900.0,0.75608615]
[1745146423555,0.20612355,83901.0,83900.0,0.75608615]
[1745146423757,0.21440094,83901.0,83900.0,0.75608615]
[1745146424317,0.2254385,83901.0,83900.0,0.75608615]
[1745146425753,0.21716111,83901.0,83900.0,0.75608615]
[1745146426152,0.19507836,83901.0,83900.0,0.75608615]
[1745146426388,0.19507836,83901.0,83900.0,0.3864676]
[1745146426389,0.95478945,83901.0,83900.0,0.3864676]
[1745146426599,0.85971331,83901.0,83900.0,0.3864676]
[1745146426821,0.88279606,83901.0,83900.0,0.5626276]
[1745146427288,0.88279606,83901.0,83900.0,0.39072056]
[1745146427519,0.9768722,83901.0,83900.0,0.3864676]
[1745146427748,0.88279606,83901.0,83900.0,0.39072567]
[1745146427978,0.88279606,83901.0,83900.0,0.57904567]
[1745146428262,0.01554085,83889.0,83888.0,1.22476]
[1745146428500,0.40474632,83889.0,83888.0,1.41308]
[1745146428724,0.40574632,83889.0,83888.0,1.41308]
[1745146428952,0.42782907,83889.0,83888.0,1.41308]
[1745146429192,0.43886663,83889.0,83888.0,1.41308]
[1745146429452,0.43886663,83889.0,83888.0,1.41680582]
[1745146430111,0.43886663,83889.0,83888.0,1.42256582]
[1745146430708,0.48536663,83889.0,83888.0,1.42256582]
[1745146431114,0.53076663,83889.0,83888.0,1.42256582]
[1745146431328,0.53076663,83889.0,83888.0,1.22848582]
[1745146431926,0.87076663,83889.0,83888.0,1.22848582]
[1745146432131,0.85972907,83889.0,83888.0,1.22848582]
[1745146432290,1.09813935,83889.0,83888.0,1.22848582]
[1745146433212,1.10641674,83889.0,83888.0,1.22848582]
[1745146433413,0.01554085,83871.0,83870.0,0.00259267]
[1745146433650,0.40474632,83871.0,83870.0,0.00259267]
[1745146434636,0.42682907,83871.0,83870.0,0.00259267]
[1745146434840,0.42728083,83871.0,83870.0,0.00259267]
[1745146435075,0.41659169,83871.0,83870.0,0.00259267]
[1745146435225,0.39450894,83871.0,83870.0,0.00259267]
[1745146435633,0.40904979,83871.0,83870.0,0.00259267]
[1745146437186,0.39450894,83871.0,83870.0,0.00359267]
[1745146437750,0.39450894,83871.0,83870.0,0.00259267]
[1745146437906,0.39450894,83871.0,83870.0,0.20239267]
[1745146437907,0.40904979,83871.0,83870.0,0.20239267]
[1745146439617,0.43113254,83871.0,83870.0,0.20239267]
[1745146440272,0.43113254,83871.0,83870.0,0.20915267]
[1745146440400,0.4421701,83871.0,83870.0,0.20915267]
[1745146442315,0.4421701,83871.0,83870.0,0.21254003]
[1745146443115,0.4421701,83871.0,83870.0,0.21348]
[1745146443716,0.45036687,83871.0,83870.0,0.21348]
[1745146445041,0.01454085,83870.0,83867.0,1.22508]
[1745146445217,0.04482037,83869.0,83868.0,0.21348]
[1745146445423,0.16426828,83869.0,83868.0,0.21348]
[1745146445617,0.14218553,83869.0,83868.0,0.21348]
[1745146445823,0.01454085,83868.0,83867.0,1.22508]
[1745146446068,0.13398876,83868.0,83867.0,1.43856]
[1745146446488,0.13398876,83868.0,83867.0,1.22508]
[1745146446653,0.15322309,83868.0,83867.0,1.43856]
[1745146447074,0.41898065,83868.0,83867.0,1.22508]
[1745146447282,0.46538065,83868.0,83867.0,1.43856]
[1745146447633,0.4874634,83868.0,83867.0,1.43856]
[1745146456110,0.58153954,83868.0,83867.0,1.43856]
[1745146456314,0.5588034,83868.0,83867.0,1.43856]
[1745146457176,0.5588034,83868.0,83867.0,1.22508]
[1745146457433,0.5588034,83868.0,83867.0,1.4386]
[1745146458727,0.5588034,83868.0,83850.0,0.19318182]
[1745146459026,0.01454085,83866.0,83860.0,1.22552]
[1745146459224,0.13398876,83861.0,83860.0,1.22552]
[1745146459533,0.13398876,83861.0,83860.0,1.43904]
[1745146459818,0.15607151,83861.0,83860.0,1.43904]
[1745146460034,0.01454085,83860.0,83855.0,0.22536]
[1745146460239,0.01454085,83855.0,83850.0,0.19318182]
[1745146460444,0.13398876,83852.0,83850.0,0.19318182]
[1745146460615,0.13398876,83852.0,83851.0,0.2419912]
[1745146460831,0.16426828,83852.0,83851.0,0.2419912]
[1745146461661,0.17530584,83852.0,83851.0,0.2419912]
[1745146462241,0.26930584,83852.0,83851.0,0.0166312]
[1745146464689,0.01454085,83851.0,83850.0,0.12839852]
[1745146464931,0.13398876,83851.0,83850.0,0.12839852]
[1745146465361,0.16426828,83851.0,83850.0,0.12839852]
[1745146465737,0.17530584,83851.0,83850.0,0.12839852]
[1745146467910,0.16076499,83851.0,83850.0,0.12839852]
[1745146470480,0.42652255,83851.0,83850.0,0.12839852]
[1745146473032,0.42652255,83851.0,83850.0,0.12939852]
[1745146474089,0.4044398,83851.0,83850.0,0.17759852]
[1745146474516,0.4044398,83851.0,83850.0,0.22599852]
[1745146474718,0.39340224,83851.0,83850.0,0.22599852]
[1745146474944,0.38520547,83851.0,83850.0,0.22599852]
[1745146476481,0.11944791,83851.0,83850.0,0.22599852]
[1745146476956,0.26575756,83869.0,83851.0,0.0482]
[1745146477130,0.11944791,83868.0,83853.0,0.0482]
[1745146477330,0.11944791,83868.0,83856.0,0.0482]
[1745146477555,0.11944791,83868.0,83857.0,0.05078458]
[1745146477766,0.11944791,83868.0,83858.0,0.0482]
[1745146477943,0.00045176,83871.0,83859.0,0.0484]
[1745146478089,0.00045176,83871.0,83860.0,0.0482]
[1745146478288,0.00045176,83871.0,83860.0,0.40685978]
[1745146478483,0.00045176,83871.0,83860.0,0.35865978]
[1745146478745,0.00045176,83871.0,83861.0,0.34]
[1745146479060,0.00045176,83871.0,83863.0,0.0484]
[1745146479206,0.00045176,83871.0,83864.0,0.0482]
[1745146479606,0.00045176,83871.0,83864.0,0.0492]
[1745146481651,0.00045176,83871.0,83866.0,0.34]
[1745146481850,0.21352405,83870.0,83866.0,0.34]
[1745146482113,0.21352405,83870.0,83866.0,0.001]
[1745146482314,0.21352405,83870.0,83867.0,0.23312]
[1745146482948,0.47928161,83870.0,83867.0,0.23312]
[1745146483270,0.11944791,83868.0,83867.0,0.23312]
[1745146496742,0.11944791,83868.0,83867.0,0.22704]
[1745146498886,0.11944791,83868.0,83867.0,0.22804]
[1745146499388,0.26620932,83871.0,83867.0,0.22804]
[1745146499389,0.00045176,83871.0,83867.0,0.22804]
[1745146499618,0.11944791,83870.0,83867.0,0.22804]
[1745146499822,0.00045176,83871.0,83867.0,0.23042451]
[1745146499943,0.00045176,83871.0,83867.0,0.22804]
[1745146502624,0.00045176,83871.0,83868.0,0.00238429]
[1745146503083,0.00045176,83871.0,83868.0,0.001]
[1745146503291,0.00045176,83871.0,83868.0,0.00338415]
[1745146503511,0.00045176,83871.0,83868.0,0.001]
[1745146503988,0.00045176,83871.0,83868.0,0.00338415]
[1745146504433,0.00045176,83871.0,83868.0,0.001]
[1745146504846,0.00045176,83871.0,83869.0,0.00238415]
[1745146505065,0.00045176,83871.0,83868.0,0.001]
[1745146505516,0.00045176,83871.0,83869.0,0.0453]
[1745146505941,0.00045176,83871.0,83869.0,0.0463]
[1745146507514,0.00045176,83871.0,83870.0,0.00238403]
[1745146507740,0.00045176,83871.0,83870.0,0.04768403]
[1745146507986,0.00045176,83871.0,83870.0,0.04868403]
[1745146508214,0.00045176,83871.0,83870.0,0.09658403]
[1745146508471,0.00045176,83871.0,83870.0,0.4342]
[1745146508922,0.00045176,83871.0,83870.0,0.6612]
[1745146510285,0.00045176,83871.0,83870.0,0.84518876]
[1745146511022,0.00045176,83871.0,83870.0,0.72574085]
[1745146511478,0.00045176,83871.0,83870.0,0.84518876]
[1745146516461,0.00045176,83871.0,83870.0,0.72574085]
[1745146517561,0.00045176,83871.0,83870.0,0.6133]
[1745146518191,0.00045176,83871.0,83870.0,0.2733]
[1745146522212,0.00045176,83871.0,83870.0,0.0463]
[1745146522432,0.00045176,83871.0,83870.0,0.60726]
[1745146526000,0.00045176,83871.0,83870.0,0.62180085]
[1745146526889,0.00045176,83871.0,83870.0,0.74124876]
[1745146530455,0.00045176,83871.0,83870.0,0.79124876]
[1745146531079,0.00045176,83871.0,83870.0,0.79024876]
[1745146531222,0.00045176,83871.0,83870.0,0.79124876]
[1745146534351,0.00045176,83871.0,83870.0,0.57028876]
[1745146534511,0.00045176,83871.0,83870.0,0.78532876]
[1745146535875,0.00045176,83871.0,83870.0,0.73432876]
[1745146536084,0.00045176,83871.0,83870.0,0.66488085]
[1745146536201,0.00045176,83871.0,83870.0,0.2092]
[1745146536844,0.00045176,83871.0,83870.0,0.55158399]
[1745146537053,0.00045176,83871.0,83870.0,0.5492]
[1745146538603,0.00045176,83871.0,83870.0,0.68418876]
[1745146542654,0.00045176,83871.0,83870.0,0.78168876]
[1745146544362,0.00045176,83871.0,83870.0,0.57248876]
[1745146544568,0.00045176,83871.0,83870.0,0.78168876]
[1745146545909,0.00045176,83871.0,83870.0,0.78268876]
[1745146546699,0.09407614,83893.0,83881.0,0.06414085]
[1745146546906,0.09407614,83893.0,83882.0,0.45944791]
[1745146547234,0.0485422,83905.0,83883.0,0.00238356]
[1745146547444,0.0008424,83902.0,83896.0,0.05]
[1745146547564,0.0008424,83902.0,83898.0,0.34]
[1745146547764,0.0008424,83902.0,83899.0,0.00238318]
[1745146548621,0.0008424,83902.0,83899.0,0.00244249]
[1745146549612,0.0008424,83902.0,83899.0,0.01921685]
[1745146549832,0.0008424,83902.0,83901.0,0.35554085]
[1745146550035,0.0008424,83902.0,83901.0,0.47498876]
[1745146550241,0.0008424,83902.0,83901.0,0.47398876]
[1745146550442,0.0008424,83902.0,83901.0,0.67754876]
[1745146551366,0.0008424,83902.0,83901.0,0.47398876]
[1745146551606,0.0008424,83902.0,83901.0,0.67750876]
[1745146551819,0.0008424,83902.0,83901.0,0.67850876]
[1745146551996,0.0008424,83902.0,83901.0,0.67750876]
[1745146552407,0.0008424,83902.0,83901.0,0.67850876]
[1745146552969,0.0008424,83902.0,83901.0,0.67750876]
[1745146556041,0.0008424,83902.0,83901.0,0.47398876]
[1745146556261,0.0008424,83902.0,83901.0,0.54352]
[1745146563788,0.0008424,83902.0,83901.0,0.67750876]
[1745146564361,0.0008424,83902.0,83901.0,0.66296791]
[1745146564568,0.0008424,83902.0,83901.0,0.54352]
[1745146564772,0.0008424,83902.0,83901.0,0.53788]
[1745146565363,0.0008424,83902.0,83901.0,0.55242085]
[1745146566056,0.0008424,83902.0,83901.0,0.53788]
[1745146569507,0.0008424,83902.0,83901.0,0.67186876]
[1745146570915,0.0008424,83902.0,83901.0,0.67286876]
[1745146571712,0.0008424,83902.0,83901.0,0.72286876]
[1745146572107,0.0005731,83902.0,83901.0,0.72286876]
[1745146572333,0.0005731,83902.0,83901.0,0.77046876]
[1745146573615,0.09407614,83925.0,83908.0,0.06454085]
[1745146573808,0.09407614,83925.0,83908.0,0.52398876]
[1745146574012,0.09407614,83925.0,83908.0,0.52498876]
[1745146575163,0.09407614,83925.0,83908.0,0.52398876]
[1745146575509,0.09407614,83925.0,83908.0,0.71606876]
[1745146578118,0.0451,83930.0,83908.0,0.71706876]
[1745146578479,0.0451,83930.0,83908.0,0.71806876]
[1745146589048,0.0451,83930.0,83908.0,0.71706876]
[1745146593741,0.0451,83930.0,83908.0,1.94122876]
[1745146594104,0.0451,83930.0,83908.0,1.74914876]
[1745146594236,0.0459,83917.0,83908.0,1.93574876]
[1745146594441,0.0459,83917.0,83908.0,1.93474876]
[1745146594659,0.0497,83915.0,83908.0,1.69814876]
[1745146594887,0.0497,83915.0,83908.0,1.88474876]
[1745146596077,0.0497,83915.0,83908.0,1.75076]
[1745146605241,0.005,83909.0,83908.0,1.56416]
[1745146605441,0.005,83909.0,83908.0,1.74504]
[1745146609139,0.005,83909.0,83908.0,1.56416]
[1745146609304,0.005,83909.0,83908.0,1.40504]
[1745146610366,0.005,83909.0,83908.0,1.74504]
[1745146612219,0.005,83909.0,83908.0,1.79484]
[1745146612395,0.0008408,83943.0,83922.0,0.01454085]
[1745146612604,0.0008408,83943.0,83925.0,0.01454085]
[1745146612767,0.0008408,83943.0,83927.0,0.34]
[1745146613958,0.0008408,83943.0,83927.0,0.34005931]
[1745146615178,0.0008408,83943.0,83927.0,0.34105931]
[1745146615528,0.0008408,83943.0,83928.0,0.18088]
[1745146618944,0.0008408,83943.0,83928.0,0.52088]
[1745146619425,0.0008408,83943.0,83928.0,0.52188]
[1745146620972,0.0008408,83943.0,83928.0,1.746]
[1745146622620,0.0988,83929.0,83928.0,1.405]
[1745146622854,0.0988,83929.0,83928.0,1.56412]
[1745146623213,0.0988,83929.0,83928.0,1.39912]
[1745146623362,0.0988,83929.0,83928.0,1.73912]
[1745146626490,0.0998,83929.0,83928.0,1.56412]
[1745146626692,0.0998,83929.0,83928.0,1.73912]
[1745146627342,0.0998,83929.0,83928.0,1.39912]
[1745146627343,0.21924791,83929.0,83928.0,1.39912]
[1745146627956,0.22833548,83929.0,83928.0,1.39912]
[1745146628336,0.22833548,83929.0,83928.0,1.22412]
[1745146628533,0.22833548,83929.0,83928.0,1.39916]
[1745146629145,0.0493,83926.0,83881.0,0.412]
[1745146629369,0.0944,83923.0,83883.0,0.34]
[1745146629519,0.0944,83918.0,83881.0,0.42857557]
[1745146629871,0.0451,83914.0,83882.0,0.34]
[1745146630068,0.11944791,83913.0,83882.0,0.34]
[1745146630226,0.11944791,83913.0,83883.0,0.00238361]
[1745146630822,0.0944,83912.0,83883.0,0.00338361]
[1745146630956,0.11944791,83911.0,83883.0,0.00338361]
[1745146631697,0.12828487,83911.0,83883.0,0.00338361]
[1745146633746,0.12828487,83911.0,83884.0,0.03558106]
[1745146633867,0.12828487,83911.0,83885.0,0.01454085]
[1745146634063,0.12828487,83911.0,83885.0,0.13398876]
[1745146634269,0.09427759,83912.0,83887.0,0.01454085]
[1745146634487,0.0493,83912.0,83891.0,0.01454085]
[1745146634723,0.0493,83912.0,83890.0,0.046]
[1745146634724,0.0493,83912.0,83893.0,0.01454085]
[1745146634956,0.0493,83912.0,83894.0,0.03796429]
[1745146635186,0.0493,83912.0,83896.0,0.34]
[1745146635394,0.0493,83912.0,83897.0,0.00238323]
[1745146635836,0.0493,83912.0,83897.0,0.00338323]
[1745146637553,0.004,83929.0,83897.0,0.00338323]
[1745146637554,0.0473,83917.0,83898.0,0.13398876]
[1745146637771,0.0486,83921.0,83900.0,0.01454085]
[1745146638013,0.0486,83921.0,83902.0,0.35454085]
[1745146638229,0.004,83929.0,83904.0,0.35454085]
[1745146638451,0.004,83929.0,83906.0,0.35454085]
[1745146638651,0.004,83929.0,83908.0,0.35454085]
[1745146638868,0.004,83929.0,83910.0,0.01454085]
[1745146639099,0.004,83929.0,83912.0,0.01454085]
[1745146639285,0.004,83929.0,83914.0,0.01454085]
[1745146639480,0.004,83929.0,83916.0,0.01454085]
[1745146639724,0.004,83929.0,83918.0,0.01454085]
[1745146639925,0.004,83929.0,83920.0,0.01454085]
[1745146640100,0.004,83929.0,83922.0,0.01454085]
[1745146640410,0.004,83929.0,83924.0,0.01454085]
[1745146640609,0.004,83929.0,83926.0,0.01454085]
[1745146640762,0.004,83929.0,83928.0,0.01454085]
[1745146640967,0.004,83929.0,83928.0,0.01654085]
[1745146641613,0.004,83929.0,83928.0,0.01554085]
[1745146641976,0.004,83929.0,83928.0,0.19058085]
[1745146642381,0.004,83929.0,83928.0,0.54527224]
[1745146649019,0.004,83929.0,83928.0,0.37023224]
[1745146649214,0.004,83929.0,83928.0,0.54527224]
[1745146651105,0.004,83929.0,83928.0,0.66472015]
[1745146653341,0.004,83929.0,83928.0,0.65916015]
[1745146655428,0.0008408,83943.0,83930.0,0.01454085]
[1745146655607,0.0008408,83943.0,83931.0,0.12182992]
[1745146656090,0.0008408,83943.0,83931.0,0.12382992]
[1745146656328,0.0008408,83943.0,83934.0,0.06554085]
[1745146656549,0.0008408,83943.0,83934.0,0.59698876]
[1745146656777,0.0008408,83943.0,83934.0,0.93898876]
[1745146657024,0.0008408,83943.0,83934.0,0.97456982]
[1745146657463,0.0008408,83943.0,83934.0,1.05596804]
[1745146657937,0.0008408,83943.0,83939.0,0.01554085]
[1745146658165,0.0008408,83943.0,83941.0,0.35454085]
[1745146658403,0.0008408,83943.0,83942.0,0.47637055]
[1745146658622,0.0008408,83943.0,83942.0,0.47398876]
[1745146658874,0.0008408,83943.0,83942.0,0.88898876]
[1745146659113,0.0008408,83943.0,83942.0,1.05596804]
[1745146659346,0.0471414,83971.0,83953.0,0.01454085]
[1745146659560,0.00129315,83963.0,83955.0,0.35454085]
[1745146659779,0.00129315,83963.0,83957.0,0.35454085]
[1745146659981,0.00129315,83963.0,83959.0,0.35454085]
[1745146660140,0.00129315,83963.0,83958.0,1.34344791]
[1745146660141,0.00084191,83962.0,83961.0,0.01454085]
[1745146660341,0.00084191,83962.0,83961.0,0.13498876]
[1745146660972,0.00084191,83962.0,83961.0,0.001]
[1745146661976,0.00084191,83962.0,83961.0,0.13498876]
[1745146664323,0.00084191,83962.0,83961.0,0.47498876]
[1745146666509,0.0008414,83986.0,83981.0,0.0466]
[1745146666729,0.0008414,83986.0,83983.0,0.34]
[1745146667672,0.09554633,83988.0,83983.0,0.34]
[1745146667911,0.09554633,83988.0,83983.0,0.3551698]
[1745146668153,0.09554633,83988.0,83983.0,0.34]
[1745146670404,0.09554633,83988.0,83984.0,0.00238116]
[1745146670634,0.09554633,83988.0,83983.0,0.34]
[1745146671519,0.0476,83988.0,83983.0,0.34]
[1745146673069,0.0476,83988.0,83981.0,4.53e-05]
[1745146673287,0.0476,83988.0,83985.0,0.34]
[1745146673809,0.00900367,83992.0,83985.0,0.34]
[1745146673970,0.00900367,83992.0,83986.0,0.00238109]
[1745146675764,0.00900367,83992.0,83987.0,1.22352]
[1745146677734,0.0486,83994.0,83987.0,1.22352]
[1745146678302,0.0486,83994.0,83987.0,1.22452]
[1745146679312,0.0486,83994.0,83987.0,1.22352]
[1745146679809,0.00977399,83993.0,83987.0,1.22352]
[1745146680874,0.00977399,83993.0,83988.0,0.16408]
[1745146687706,0.0008408,83993.0,83988.0,0.50408]
[1745146693159,0.0008408,83993.0,83988.0,0.50508]
[1745146697932,0.00476318,83989.0,83988.0,0.50508]
[1745146707408,0.00476318,83989.0,83988.0,0.50608]
[1745146707879,0.00476318,83989.0,83988.0,0.64006876]
[1745146708088,0.00476318,83989.0,83988.0,0.68576876]
[1745146708713,0.00476318,83989.0,83988.0,0.75502207]
[1745146708918,0.00476318,83989.0,83988.0,0.73346876]
[1745146708919,0.00376318,83989.0,83988.0,0.73346876]
[1745146709288,0.00376318,83989.0,83988.0,0.80272207]
[1745146709490,0.00376318,83989.0,83988.0,0.73346876]
[1745146710942,0.00376318,83989.0,83988.0,0.73246876]
[1745146711294,0.00376318,83989.0,83988.0,0.8943063]
[1745146711495,0.0008414,84021.0,83999.0,0.01454085]
[1745146711689,0.0008414,84021.0,83999.0,0.4763689]
[1745146711934,0.0008414,84021.0,83999.0,0.47498876]
[1745146712399,0.0008414,84021.0,83999.0,0.47598876]
[1745146714188,0.0008414,84021.0,83999.0,0.63478876]
[1745146714525,0.0005944,84009.0,84008.0,0.01454085]
[1745146714731,0.0008414,84021.0,84010.0,0.01454085]
[1745146714872,0.0008414,84021.0,84010.0,0.13398876]
[1745146715283,0.0008414,84021.0,84010.0,0.1588]
[1745146715885,0.0008414,84021.0,84010.0,0.1588453]
[1745146717286,0.0008414,84021.0,84010.0,0.4988453]
[1745146718935,0.0462,84015.0,84010.0,0.4988453]
[1745146719947,10.0008408,84011.0,84010.0,0.4988453]
[1745146723310,10.07932357,84011.0,84010.0,0.16612]
[1745146723554,10.12552357,84011.0,84010.0,0.16612]
[1745146724004,10.0945408,84011.0,84010.0,0.16612]
[1745146724215,0.0465,84010.0,83987.0,1.22352]
[1745146724409,0.0462,84009.0,83988.0,0.17156]
[1745146724627,0.0462,84009.0,83989.0,0.00238096]
[1745146724857,0.0462,84009.0,83989.0,0.17156]
[1745146725095,0.0472,84009.0,83989.0,0.17156]
[1745146725296,0.0472,84009.0,83990.0,0.34]
[1745146725499,0.0472,84009.0,83991.0,0.00238096]
[1745146725706,0.05594717,84009.0,83991.0,0.00238096]
[1745146725921,0.05594717,84009.0,83993.0,0.34]
[1745146726141,0.11944791,84008.0,83993.0,0.34]
[1745146726574,0.12044791,84008.0,83993.0,0.34]
[1745146727084,0.12044791,84008.0,83994.0,0.00238096]
[1745146727335,0.0462,84007.0,83993.0,0.34]
[1745146727574,0.0462,84005.0,83993.0,0.34]
[1745146727771,0.11944791,84004.0,83993.0,0.34]
[1745146727990,0.11944791,84004.0,83994.0,0.1716]
[1745146728334,0.12044791,84004.0,83994.0,0.1716]
[1745146728688,0.12044791,84004.0,83995.0,1.39476]
[1745146728918,0.12058361,84004.0,83996.0,0.1716]
[1745146730673,0.0488,84003.0,83966.0,0.01454085]
[1745146730791,0.11944791,84002.0,83969.0,0.01454085]
[1745146731014,0.11944791,84002.0,83971.0,0.35454085]
[1745146731237,0.11944791,84002.0,83973.0,0.35454085]
[1745146731457,0.11944791,84002.0,83975.0,0.35454085]
[1745146731654,0.11944791,84002.0,83977.0,0.34]
[1745146733243,0.0488,84001.0,83977.0,0.34]
[1745146735209,0.0488,84001.0,83978.0,1.39488]
[1745146735404,0.0488,84001.0,83978.0,1.22328]
[1745146735405,0.0482,84000.0,83978.0,1.22328]
[1745146735596,0.0465,83999.0,83979.0,0.1716]
[1745146735796,0.0465,83999.0,83980.0,0.1716]
[1745146735997,0.0465,83996.0,83980.0,0.1716]
[1745146740502,0.0465,83996.0,83981.0,0.34]
[1745146741371,0.0465,83996.0,83981.0,0.33]
[1745146746387,0.0497,83994.0,83981.0,0.33]
[1745146749521,0.0497,83994.0,83980.0,0.1716]
[1745146751947,0.0497,83994.0,83978.0,1.22328]
[1745146752145,0.0497,83994.0,83979.0,0.5116]
[1745146753175,0.0497,83994.0,83979.0,0.1716]
[1745146753905,0.0497,83994.0,83978.0,1.22328]
[1745146754103,0.11944791,83994.0,83980.0,0.16688]
[1745146754347,0.0468,83995.0,83980.0,0.16688]
[1745146754348,0.0479,83992.0,83980.0,0.16688]
[1745146760838,0.0479,83992.0,83981.0,0.34238128]
[1745146761040,0.0479,83992.0,83981.0,0.34]
[1745146761390,0.26575756,84003.0,83982.0,0.00238097]
[1745146761391,0.0495,84000.0,83982.0,0.00238097]
[1745146761604,0.0495,84000.0,83981.0,0.34]